[Event "Early-Titled-Tuesday-Blitz-April-02-2024"]
[Site "Chess.com"]
[Date "2024.04.02"]
[Round "9"]
[White "Gennady_Kozlov"]
[Black "Cheer_Down"]
[Result "0-1"]
[WhiteElo "2624"]
[BlackElo "2480"]
[TimeControl "180+1"]
[EndTime "9:43:43 PDT"]
[Termination "Cheer_Down won by resignation"]

1. b3 {[%clk 0:03:00.9]} 1... e5 {[%clk 0:02:59.6]} 2. Bb2 {[%clk 0:03:01.8]}
2... Nc6 {[%clk 0:02:59.8]} 3. e3 {[%clk 0:03:02.7]} 3... d5 {[%clk 0:02:59.2]}
4. Bb5 {[%clk 0:03:02.8]} 4... Ne7 {[%clk 0:02:58.5]} 5. Bxe5 {[%clk 0:03:01.2]}
5... a6 {[%clk 0:02:58.1]} 6. Bxc6+ {[%clk 0:03:00.7]} 6... Nxc6 {[%clk
0:02:59]} 7. Bb2 {[%clk 0:03:00.7]} 7... Qg5 {[%clk 0:02:58]} 8. g3 {[%clk
0:02:49.4]} 8... h5 {[%clk 0:02:51.6]} 9. f4 {[%clk 0:02:48.8]} 9... Qg6 {[%clk
0:02:50]} 10. Nf3 {[%clk 0:02:47]} 10... h4 {[%clk 0:02:31.2]} 11. Nc3 {[%clk
0:02:29.9]} 11... hxg3 {[%clk 0:02:29.3]} 12. Nxd5 {[%clk 0:02:29.8]} 12... g2
{[%clk 0:02:20.2]} 13. Rg1 {[%clk 0:02:09.5]} 13... Bd6 {[%clk 0:02:08.7]} 14.
Qe2 {[%clk 0:02:03.4]} 14... Bh3 {[%clk 0:02:06.4]} 15. O-O-O {[%clk 0:01:54.4]}
15... O-O-O {[%clk 0:02:05.9]} 16. e4 {[%clk 0:01:49.4]} 16... f5 {[%clk
0:01:50.2]} 17. e5 {[%clk 0:01:48.6]} 17... Bc5 {[%clk 0:01:49.3]} 18. d4 {[%clk
0:01:46.7]} 18... Rxd5 {[%clk 0:01:46.8]} 19. dxc5 {[%clk 0:01:39.6]} 19...
Rxd1+ {[%clk 0:01:46.5]} 20. Qxd1 {[%clk 0:01:30.5]} 20... Qg4 {[%clk
0:01:35.8]} 21. Ng5 {[%clk 0:01:10]} 21... Qxf4+ {[%clk 0:01:26.5]} 22. Qd2
{[%clk 0:01:10.9]} 22... Qf1+ {[%clk 0:01:20.5]} 23. Qd1 {[%clk 0:01:10.9]}
23... Rd8 {[%clk 0:00:55.1]} 24. Rxf1 {[%clk 0:01:09.4]} 24... gxf1=Q {[%clk
0:00:53.4]} 25. Qxf1 {[%clk 0:01:10.3]} 25... Bxf1 {[%clk 0:00:53.5]} 26. e6
{[%clk 0:01:11.2]} 26... Re8 {[%clk 0:00:50.1]} 27. Bxg7 {[%clk 0:01:09.4]}
27... f4 {[%clk 0:00:47.5]} 28. h4 {[%clk 0:01:07.4]} 28... Nd8 {[%clk
0:00:45.6]} 29. Be5 {[%clk 0:01:00.4]} 29... Nxe6 {[%clk 0:00:45.1]} 30. Nxe6
{[%clk 0:01:01.3]} 30... Rxe6 {[%clk 0:00:45.2]} 31. Bxf4 {[%clk 0:01:02.2]}
31... Be2 {[%clk 0:00:44.1]} 32. Bg5 {[%clk 0:01:03.1]} 32... Kd7 {[%clk
0:00:43]} 33. b4 {[%clk 0:01:03.1]} 33... Bh5 {[%clk 0:00:43.4]} 34. a3 {[%clk
0:01:03.7]} 34... Kc6 {[%clk 0:00:43.7]} 35. Kb2 {[%clk 0:01:04.6]} 35... Kd5
{[%clk 0:00:44]} 36. c3 {[%clk 0:01:05.4]} 36... Kc4 {[%clk 0:00:44.1]} 0-1

[Event "Early-Titled-Tuesday-Blitz-April-02-2024"]
[Site "Chess.com"]
[Date "2024.04.02"]
[Round "9"]
[White "Predo63"]
[Black "Matols"]
[Result "1-0"]
[WhiteElo "2529"]
[BlackElo "2367"]
[TimeControl "180+1"]
[EndTime "9:43:43 PDT"]
[Termination "Predo63 won by resignation"]

1. d4 {[%clk 0:03:00.9]} 1... d5 {[%clk 0:02:59.3]} 2. Bf4 {[%clk 0:03:00.9]}
2... Nf6 {[%clk 0:02:58.8]} 3. e3 {[%clk 0:03:01.5]} 3... c5 {[%clk 0:02:58.6]}
4. c3 {[%clk 0:03:01.8]} 4... Nc6 {[%clk 0:02:58.3]} 5. Nd2 {[%clk 0:03:02.1]}
5... Bg4 {[%clk 0:02:57.2]} 6. Ngf3 {[%clk 0:03:01.9]} 6... e6 {[%clk
0:02:56.6]} 7. Be2 {[%clk 0:03:01.8]} 7... Bd6 {[%clk 0:02:54.3]} 8. Bg3 {[%clk
0:03:01.2]} 8... O-O {[%clk 0:02:52.3]} 9. O-O {[%clk 0:03:00.8]} 9... Bxg3
{[%clk 0:02:50.9]} 10. hxg3 {[%clk 0:03:01.7]} 10... Qd6 {[%clk 0:02:48.2]} 11.
a3 {[%clk 0:03:01.1]} 11... e5 {[%clk 0:02:43.5]} 12. dxe5 {[%clk 0:03:00.3]}
12... Nxe5 {[%clk 0:02:43.1]} 13. Nxe5 {[%clk 0:03:00.4]} 13... Bxe2 {[%clk
0:02:42.4]} 14. Qxe2 {[%clk 0:03:00.8]} 14... Qxe5 {[%clk 0:02:42.1]} 15. Rfd1
{[%clk 0:02:50]} 15... Rad8 {[%clk 0:02:40.8]} 16. Qf3 {[%clk 0:02:48.6]} 16...
Rfe8 {[%clk 0:02:38.4]} 17. Nb3 {[%clk 0:02:46.8]} 17... b6 {[%clk 0:02:36.6]}
18. Qf4 {[%clk 0:02:45.5]} 18... Qh5 {[%clk 0:02:30.7]} 19. Nd2 {[%clk
0:02:38.8]} 19... Ng4 {[%clk 0:02:25.2]} 20. Nf1 {[%clk 0:02:38.8]} 20... Re6
{[%clk 0:02:19.1]} 21. f3 {[%clk 0:02:38.2]} 21... Rh6 {[%clk 0:02:09.1]} 22.
Qxg4 {[%clk 0:02:31.6]} 22... Qe5 {[%clk 0:01:50.4]} 23. e4 {[%clk 0:02:24.4]}
23... d4 {[%clk 0:01:48.5]} 24. cxd4 {[%clk 0:02:20.8]} 24... cxd4 {[%clk
0:01:48.1]} 25. Rd2 {[%clk 0:02:18.5]} 25... d3 {[%clk 0:01:47.2]} 26. Qf4
{[%clk 0:02:15.9]} 26... Qc5+ {[%clk 0:01:45.7]} 27. Qe3 {[%clk 0:02:16]} 27...
Qh5 {[%clk 0:01:44.1]} 28. Rad1 {[%clk 0:02:13.6]} 28... Qh1+ {[%clk 0:01:36.8]}
29. Kf2 {[%clk 0:02:11.2]} 29... Rc6 {[%clk 0:01:09.8]} 30. Rxd3 {[%clk
0:02:05.7]} 30... Rc2+ {[%clk 0:01:04.2]} 31. R3d2 {[%clk 0:02:05.3]} 31... Rdc8
{[%clk 0:00:56]} 32. Rxc2 {[%clk 0:01:56.1]} 32... Rxc2+ {[%clk 0:00:55.4]} 33.
Rd2 {[%clk 0:01:56]} 33... Rc8 {[%clk 0:00:54.7]} 34. e5 {[%clk 0:01:49.4]}
34... h5 {[%clk 0:00:46.4]} 35. e6 {[%clk 0:01:48]} 35... Rc1 {[%clk 0:00:45.3]}
36. exf7+ {[%clk 0:01:47.2]} 36... Kh7 {[%clk 0:00:38.5]} 37. Qe2 {[%clk
0:01:46.4]} 37... h4 {[%clk 0:00:32.4]} 38. Qe4+ {[%clk 0:01:40.8]} 1-0

[Event "Early-Titled-Tuesday-Blitz-April-02-2024"]
[Site "Chess.com"]
[Date "2024.04.02"]
[Round "9"]
[White "ninguno46"]
[Black "Bob_2004"]
[Result "1-0"]
[WhiteElo "2570"]
[BlackElo "2358"]
[TimeControl "180+1"]
[EndTime "9:43:46 PDT"]
[Termination "ninguno46 won by checkmate"]

1. e4 {[%clk 0:03:00.9]} 1... c5 {[%clk 0:02:59.3]} 2. Nc3 {[%clk 0:02:59.8]}
2... g6 {[%clk 0:02:54.7]} 3. f4 {[%clk 0:03:00.3]} 3... Bg7 {[%clk 0:02:54.6]}
4. Nf3 {[%clk 0:03:01]} 4... Nc6 {[%clk 0:02:53.9]} 5. Bb5 {[%clk 0:03:01.5]}
5... Nd4 {[%clk 0:02:53.7]} 6. Bd3 {[%clk 0:03:00.6]} 6... e6 {[%clk 0:02:50.3]}
7. Nxd4 {[%clk 0:03:00.3]} 7... cxd4 {[%clk 0:02:46.9]} 8. Nb5 {[%clk
0:03:00.7]} 8... d5 {[%clk 0:02:22.9]} 9. e5 {[%clk 0:02:56.7]} 9... Bf8 {[%clk
0:02:22.8]} 10. Nxd4 {[%clk 0:02:54.8]} 10... Qh4+ {[%clk 0:01:57]} 11. g3
{[%clk 0:02:53.8]} 11... Qh3 {[%clk 0:01:54.9]} 12. Bf1 {[%clk 0:02:49.2]} 12...
Qh6 {[%clk 0:01:49.6]} 13. Bb5+ {[%clk 0:02:46]} 13... Bd7 {[%clk 0:01:49.2]}
14. Bxd7+ {[%clk 0:02:45.8]} 14... Kxd7 {[%clk 0:01:50.1]} 15. Qe2 {[%clk
0:02:45.1]} 15... a6 {[%clk 0:01:45.4]} 16. d3 {[%clk 0:02:42.6]} 16... Qh3
{[%clk 0:01:44.2]} 17. Bd2 {[%clk 0:02:40.5]} 17... Nh6 {[%clk 0:01:40.4]} 18.
O-O-O {[%clk 0:02:38.8]} 18... Rc8 {[%clk 0:01:39.7]} 19. Kb1 {[%clk 0:02:38.2]}
19... Ng4 {[%clk 0:01:34.1]} 20. Nf3 {[%clk 0:02:35.2]} 20... h6 {[%clk
0:01:18.3]} 21. Ng1 {[%clk 0:02:21.5]} 21... Qh5 {[%clk 0:01:17.9]} 22. h3
{[%clk 0:02:21.5]} 22... Nf2 {[%clk 0:01:08.6]} 23. Nf3 {[%clk 0:02:14.3]} 23...
Nxh1 {[%clk 0:01:03.9]} 24. Rxh1 {[%clk 0:02:13.1]} 24... g5 {[%clk 0:00:45.7]}
25. g4 {[%clk 0:02:10.6]} 25... Qg6 {[%clk 0:00:44.8]} 26. f5 {[%clk 0:01:59.5]}
26... exf5 {[%clk 0:00:39.4]} 27. gxf5 {[%clk 0:01:56.1]} 27... Qxf5 {[%clk
0:00:33.7]} 28. Nd4 {[%clk 0:01:56.6]} 28... Qg6 {[%clk 0:00:33.2]} 29. Rf1
{[%clk 0:01:57.1]} 29... Rh7 {[%clk 0:00:09.9]} 30. Rf6 {[%clk 0:01:55]} 30...
Qg8 {[%clk 0:00:08.6]} 31. Qf3 {[%clk 0:01:39.9]} 31... Be7 {[%clk 0:00:08.1]}
32. Qxd5+ {[%clk 0:01:39.4]} 32... Ke8 {[%clk 0:00:08.6]} 33. Qxb7 {[%clk
0:01:36.3]} 33... Bxf6 {[%clk 0:00:08.2]} 34. exf6 {[%clk 0:01:36.6]} 34... Rd8
{[%clk 0:00:07.1]} 35. Qe7# {[%clk 0:01:35.8]} 1-0

[Event "Early-Titled-Tuesday-Blitz-April-02-2024"]
[Site "Chess.com"]
[Date "2024.04.02"]
[Round "9"]
[White "Vse_po_kaify"]
[Black "CarlosjPineror"]
[Result "1-0"]
[WhiteElo "2528"]
[BlackElo "2679"]
[TimeControl "180+1"]
[EndTime "9:43:47 PDT"]
[Termination "Vse_po_kaify won by resignation"]

1. e4 {[%clk 0:03:00.4]} 1... c5 {[%clk 0:02:59.1]} 2. c4 {[%clk 0:03:00.3]}
2... e6 {[%clk 0:02:59.3]} 3. Nc3 {[%clk 0:03:00.4]} 3... a6 {[%clk 0:02:59.8]}
4. g3 {[%clk 0:03:00.5]} 4... Nf6 {[%clk 0:02:59.5]} 5. Bg2 {[%clk 0:03:00.6]}
5... Nc6 {[%clk 0:03:00.2]} 6. Nge2 {[%clk 0:03:00.4]} 6... d6 {[%clk
0:02:51.1]} 7. O-O {[%clk 0:02:59.6]} 7... Be7 {[%clk 0:02:51.1]} 8. d3 {[%clk
0:02:59.7]} 8... Bd7 {[%clk 0:02:49.7]} 9. f4 {[%clk 0:02:59.8]} 9... Qc7 {[%clk
0:02:48.7]} 10. h3 {[%clk 0:02:59.7]} 10... h5 {[%clk 0:02:48.2]} 11. Be3 {[%clk
0:02:59.1]} 11... Rb8 {[%clk 0:02:44.7]} 12. a3 {[%clk 0:02:58.6]} 12... b5
{[%clk 0:02:44.3]} 13. b3 {[%clk 0:02:55.7]} 13... b4 {[%clk 0:02:17.3]} 14.
axb4 {[%clk 0:02:45.3]} 14... Nxb4 {[%clk 0:02:18.2]} 15. f5 {[%clk 0:02:44.7]}
15... e5 {[%clk 0:02:14.1]} 16. Nd5 {[%clk 0:02:40.7]} 16... Nbxd5 {[%clk
0:02:02.8]} 17. exd5 {[%clk 0:02:39.5]} 17... Qb6 {[%clk 0:02:01.6]} 18. Nc3
{[%clk 0:02:15.1]} 18... Qxb3 {[%clk 0:01:52.6]} 19. Rb1 {[%clk 0:02:13.5]}
19... Qb4 {[%clk 0:01:37.7]} 20. Rxb4 {[%clk 0:02:12.7]} 20... cxb4 {[%clk
0:01:38.6]} 21. Ne4 {[%clk 0:02:13]} 21... Nxe4 {[%clk 0:01:28.5]} 22. Bxe4
{[%clk 0:02:12.2]} 22... a5 {[%clk 0:01:27.5]} 23. d4 {[%clk 0:02:11.3]} 23...
Bf6 {[%clk 0:01:17.3]} 24. c5 {[%clk 0:02:10.1]} 24... Bb5 {[%clk 0:01:16.6]}
25. Re1 {[%clk 0:02:04]} 25... a4 {[%clk 0:01:13.4]} 26. dxe5 {[%clk 0:02:03]}
26... Bxe5 {[%clk 0:01:13.1]} 27. Bd4 {[%clk 0:01:54.4]} 27... O-O {[%clk
0:00:55.5]} 28. Bxe5 {[%clk 0:01:54.1]} 28... dxe5 {[%clk 0:00:55.5]} 29. c6
{[%clk 0:01:54.5]} 29... b3 {[%clk 0:00:50.9]} 30. c7 {[%clk 0:01:53.4]} 30...
Rb6 {[%clk 0:00:41.7]} 31. Qc1 {[%clk 0:01:52.7]} 31... Ba6 {[%clk 0:00:38.5]}
32. Qc5 {[%clk 0:01:49.5]} 32... Rf6 {[%clk 0:00:35.3]} 33. Bd3 {[%clk
0:01:41.5]} 33... Bc8 {[%clk 0:00:33.7]} 34. Bb5 {[%clk 0:01:39.1]} 34... Bxf5
{[%clk 0:00:29.9]} 35. Bxa4 {[%clk 0:01:35.5]} 35... b2 {[%clk 0:00:30.3]} 36.
Bc2 {[%clk 0:01:35.4]} 36... Bxh3 {[%clk 0:00:29.6]} 37. d6 {[%clk 0:01:32]}
37... Ra8 {[%clk 0:00:27.8]} 38. Qxe5 {[%clk 0:01:29.8]} 38... g6 {[%clk
0:00:26.4]} 39. Qxf6 {[%clk 0:01:28.5]} 1-0

[Event "Early-Titled-Tuesday-Blitz-April-02-2024"]
[Site "Chess.com"]
[Date "2024.04.02"]
[Round "9"]
[White "GMthekingindian"]
[Black "Lucky_Puncher"]
[Result "0-1"]
[WhiteElo "2234"]
[BlackElo "2490"]
[TimeControl "180+1"]
[EndTime "9:43:51 PDT"]
[Termination "Lucky_Puncher won by resignation"]

1. e4 {[%clk 0:03:00.9]} 1... c5 {[%clk 0:02:59.2]} 2. c3 {[%clk 0:03:00.9]}
2... d5 {[%clk 0:02:59.1]} 3. exd5 {[%clk 0:03:01.8]} 3... Qxd5 {[%clk
0:02:59.6]} 4. d4 {[%clk 0:03:02.5]} 4... Nf6 {[%clk 0:02:59.9]} 5. Nf3 {[%clk
0:03:02.8]} 5... Bg4 {[%clk 0:03:00.5]} 6. Be2 {[%clk 0:03:02.9]} 6... e6 {[%clk
0:03:00.9]} 7. h3 {[%clk 0:03:02.2]} 7... Bh5 {[%clk 0:03:01.6]} 8. O-O {[%clk
0:03:01.6]} 8... Nc6 {[%clk 0:03:01.7]} 9. Be3 {[%clk 0:03:01.1]} 9... cxd4
{[%clk 0:03:01.2]} 10. Nxd4 {[%clk 0:03:02]} 10... Bxe2 {[%clk 0:02:57.2]} 11.
Qxe2 {[%clk 0:03:02.9]} 11... Be7 {[%clk 0:02:56.1]} 12. Rd1 {[%clk 0:02:47.9]}
12... O-O {[%clk 0:02:55.5]} 13. Nb5 {[%clk 0:02:36.5]} 13... Qf5 {[%clk
0:02:41.6]} 14. Nd2 {[%clk 0:02:04.9]} 14... Nd5 {[%clk 0:02:14.8]} 15. Nd4
{[%clk 0:01:09.3]} 15... Nxd4 {[%clk 0:02:11.6]} 16. Bxd4 {[%clk 0:01:10.2]}
16... Nf4 {[%clk 0:02:06.5]} 17. Qf3 {[%clk 0:01:03.5]} 17... e5 {[%clk
0:02:04.7]} 18. Be3 {[%clk 0:00:59.7]} 18... Qc2 {[%clk 0:01:53.4]} 19. Bxf4
{[%clk 0:00:53.1]} 19... exf4 {[%clk 0:01:54.3]} 20. Nc4 {[%clk 0:00:43.5]}
20... Rac8 {[%clk 0:01:51.9]} 21. Rd2 {[%clk 0:00:38.6]} 21... Qf5 {[%clk
0:01:44.7]} 22. Nd6 {[%clk 0:00:35]} 22... Bxd6 {[%clk 0:01:45.2]} 23. Rxd6
{[%clk 0:00:35.4]} 23... Rc7 {[%clk 0:01:45.4]} 24. Rad1 {[%clk 0:00:34.2]}
24... Qb5 {[%clk 0:01:42.2]} 25. b3 {[%clk 0:00:31.8]} 25... Qe5 {[%clk
0:01:40.4]} 26. c4 {[%clk 0:00:30.1]} 26... Re8 {[%clk 0:01:34.4]} 27. R6d4
{[%clk 0:00:26.6]} 27... Qa5 {[%clk 0:01:30.5]} 28. Qxf4 {[%clk 0:00:23.9]}
28... Rce7 {[%clk 0:01:31.2]} 29. g3 {[%clk 0:00:18.4]} 29... Qxa2 {[%clk
0:01:29.4]} 30. Rd8 {[%clk 0:00:14.3]} 30... Qxb3 {[%clk 0:01:26.9]} 31. Qb8
{[%clk 0:00:13.8]} 31... Qxd1+ {[%clk 0:01:23.6]} 32. Rxd1 {[%clk 0:00:09.2]}
32... Rxb8 {[%clk 0:01:24.1]} 0-1

[Event "Early-Titled-Tuesday-Blitz-April-02-2024"]
[Site "Chess.com"]
[Date "2024.04.02"]
[Round "9"]
[White "Bykov_Egor"]
[Black "colegiodemadrid"]
[Result "0-1"]
[WhiteElo "2629"]
[BlackElo "2523"]
[TimeControl "180+1"]
[EndTime "9:43:52 PDT"]
[Termination "colegiodemadrid won by resignation"]

1. e4 {[%clk 0:03:00.9]} 1... e5 {[%clk 0:02:57.1]} 2. Nf3 {[%clk 0:03:00.9]}
2... Nf6 {[%clk 0:02:57]} 3. Nc3 {[%clk 0:02:58.7]} 3... Nc6 {[%clk 0:02:56.5]}
4. Bb5 {[%clk 0:02:57.7]} 4... Nd4 {[%clk 0:02:56.6]} 5. Bc4 {[%clk 0:02:53.9]}
5... Nxf3+ {[%clk 0:02:55.2]} 6. Qxf3 {[%clk 0:02:53.4]} 6... d6 {[%clk
0:02:55.8]} 7. h3 {[%clk 0:02:52.2]} 7... Be6 {[%clk 0:02:55.9]} 8. d3 {[%clk
0:02:48.8]} 8... Qd7 {[%clk 0:02:50.5]} 9. Bg5 {[%clk 0:02:43.2]} 9... Be7
{[%clk 0:02:50]} 10. O-O {[%clk 0:02:22.8]} 10... h6 {[%clk 0:02:49.3]} 11. Bxf6
{[%clk 0:02:06.4]} 11... Bxf6 {[%clk 0:02:48.7]} 12. Nd5 {[%clk 0:02:06.5]}
12... Bxd5 {[%clk 0:02:48.1]} 13. Bxd5 {[%clk 0:02:04]} 13... a5 {[%clk
0:02:48.3]} 14. Bxb7 {[%clk 0:01:58.9]} 14... Rb8 {[%clk 0:02:48.2]} 15. Bd5
{[%clk 0:01:54.7]} 15... Rxb2 {[%clk 0:02:47.9]} 16. Bb3 {[%clk 0:01:40]} 16...
a4 {[%clk 0:02:47.7]} 17. Qd1 {[%clk 0:01:38.6]} 17... O-O {[%clk 0:02:30.2]}
18. Qc1 {[%clk 0:01:34.3]} 18... a3 {[%clk 0:02:29.9]} 19. Qd2 {[%clk
0:01:28.5]} 19... Ra8 {[%clk 0:02:22]} 20. f4 {[%clk 0:01:21.8]} 20... exf4
{[%clk 0:02:19.5]} 21. d4 {[%clk 0:00:56.4]} 21... Qe7 {[%clk 0:01:57]} 22. Rxf4
{[%clk 0:00:36.4]} 22... c5 {[%clk 0:01:56.5]} 23. e5 {[%clk 0:00:30]} 23...
dxe5 {[%clk 0:01:52]} 24. dxe5 {[%clk 0:00:30.6]} 24... Qxe5 {[%clk 0:01:46.3]}
25. Raf1 {[%clk 0:00:21.3]} 25... Rd8 {[%clk 0:01:43.1]} 26. Qa5 {[%clk
0:00:18.2]} 26... c4 {[%clk 0:01:17.1]} 27. Rxf6 {[%clk 0:00:14.9]} 27... Qxa5
{[%clk 0:01:15.3]} 0-1

[Event "Early-Titled-Tuesday-Blitz-April-02-2024"]
[Site "Chess.com"]
[Date "2024.04.02"]
[Round "9"]
[White "KononenkoD"]
[Black "ViratKohl_i"]
[Result "1-0"]
[WhiteElo "2634"]
[BlackElo "2503"]
[TimeControl "180+1"]
[EndTime "9:43:55 PDT"]
[Termination "KononenkoD won by resignation"]

1. d4 {[%clk 0:02:50]} 1... g6 {[%clk 0:02:58.4]} 2. c4 {[%clk 0:02:48.1]} 2...
Bg7 {[%clk 0:02:58.5]} 3. Nc3 {[%clk 0:02:48.5]} 3... c5 {[%clk 0:02:58.4]} 4.
e3 {[%clk 0:02:46.6]} 4... cxd4 {[%clk 0:02:57.6]} 5. exd4 {[%clk 0:02:46.3]}
5... d5 {[%clk 0:02:53.7]} 6. cxd5 {[%clk 0:02:44.7]} 6... Nf6 {[%clk
0:02:52.5]} 7. Bb5+ {[%clk 0:02:45.2]} 7... Nbd7 {[%clk 0:02:50.5]} 8. Nge2
{[%clk 0:02:45.7]} 8... O-O {[%clk 0:02:49]} 9. O-O {[%clk 0:02:43.1]} 9... Nb6
{[%clk 0:02:48]} 10. Nf4 {[%clk 0:02:41.9]} 10... Nbxd5 {[%clk 0:02:47.1]} 11.
Qf3 {[%clk 0:02:38.7]} 11... Bg4 {[%clk 0:02:38.4]} 12. Qg3 {[%clk 0:02:38]}
12... Nc7 {[%clk 0:02:30.5]} 13. Ba4 {[%clk 0:02:33.4]} 13... Rc8 {[%clk
0:02:21.3]} 14. d5 {[%clk 0:02:28.7]} 14... Na8 {[%clk 0:02:16.9]} 15. h3 {[%clk
0:02:17.7]} 15... Bf5 {[%clk 0:02:16]} 16. Be3 {[%clk 0:02:16.5]} 16... Nb6
{[%clk 0:02:10.9]} 17. Bb3 {[%clk 0:02:15.8]} 17... Nc4 {[%clk 0:02:06]} 18. Bd4
{[%clk 0:01:54.3]} 18... Nd6 {[%clk 0:01:47.1]} 19. Rfe1 {[%clk 0:01:47.7]}
19... Re8 {[%clk 0:01:38.8]} 20. Rad1 {[%clk 0:01:46]} 20... b5 {[%clk
0:01:34.7]} 21. Bxa7 {[%clk 0:01:40.7]} 21... b4 {[%clk 0:01:33.7]} 22. Nce2
{[%clk 0:01:38.8]} 22... Nfe4 {[%clk 0:01:31.8]} 23. Qf3 {[%clk 0:01:31.4]}
23... Bxb2 {[%clk 0:01:29]} 24. Bd4 {[%clk 0:01:30.4]} 24... Bxd4 {[%clk
0:01:24.3]} 25. Nxd4 {[%clk 0:01:29.7]} 25... Rc3 {[%clk 0:01:20.2]} 26. Qe2
{[%clk 0:01:24.9]} 26... Nc5 {[%clk 0:01:07.3]} 27. Nc6 {[%clk 0:01:22.2]} 27...
Qc7 {[%clk 0:00:58.8]} 28. Nxe7+ {[%clk 0:01:16.4]} 28... Kf8 {[%clk 0:00:57.4]}
29. Qe5 {[%clk 0:01:06.3]} 29... f6 {[%clk 0:00:43.1]} 30. Qxf6+ {[%clk
0:01:01.1]} 30... Nf7 {[%clk 0:00:42]} 31. d6 {[%clk 0:00:59.1]} 1-0

[Event "Early-Titled-Tuesday-Blitz-April-02-2024"]
[Site "Chess.com"]
[Date "2024.04.02"]
[Round "9"]
[White "Itay121"]
[Black "GolfBeforeChess"]
[Result "1-0"]
[WhiteElo "2524"]
[BlackElo "2332"]
[TimeControl "180+1"]
[EndTime "9:43:56 PDT"]
[Termination "Itay121 won by resignation"]

1. e4 {[%clk 0:03:00.9]} 1... Nf6 {[%clk 0:02:59.1]} 2. e5 {[%clk 0:03:00.6]}
2... Nd5 {[%clk 0:02:58.4]} 3. Nc3 {[%clk 0:03:01.1]} 3... e6 {[%clk 0:02:58]}
4. Nxd5 {[%clk 0:02:59.6]} 4... exd5 {[%clk 0:02:57.7]} 5. d4 {[%clk 0:03:00.3]}
5... d6 {[%clk 0:02:57.8]} 6. Nf3 {[%clk 0:03:00.5]} 6... c5 {[%clk 0:02:56.8]}
7. c3 {[%clk 0:02:50.1]} 7... Nc6 {[%clk 0:02:56.1]} 8. Bd3 {[%clk 0:02:44.8]}
8... Bg4 {[%clk 0:02:52.6]} 9. O-O {[%clk 0:02:36.6]} 9... Bxf3 {[%clk
0:02:44.7]} 10. Qxf3 {[%clk 0:02:34.3]} 10... dxe5 {[%clk 0:02:40.2]} 11. dxe5
{[%clk 0:02:31.9]} 11... Be7 {[%clk 0:02:35.9]} 12. e6 {[%clk 0:02:08]} 12...
fxe6 {[%clk 0:02:31.1]} 13. Re1 {[%clk 0:01:58.4]} 13... Qd6 {[%clk 0:02:25]}
14. Bf4 {[%clk 0:01:38.4]} 14... e5 {[%clk 0:02:17]} 15. Qh5+ {[%clk 0:01:38.1]}
15... g6 {[%clk 0:02:01.6]} 16. Bxe5 {[%clk 0:01:35.6]} 16... Nxe5 {[%clk
0:01:54.2]} 17. Qxe5 {[%clk 0:01:33.1]} 17... Qxe5 {[%clk 0:01:53.3]} 18. Rxe5
{[%clk 0:01:34]} 18... Kf7 {[%clk 0:01:46.5]} 19. Rxd5 {[%clk 0:01:28]} 19...
Rad8 {[%clk 0:01:42.9]} 20. Bc4 {[%clk 0:01:25.4]} 20... Rxd5 {[%clk 0:01:37.7]}
21. Bxd5+ {[%clk 0:01:26.3]} 21... Kf6 {[%clk 0:01:37.6]} 22. Re1 {[%clk
0:01:25.6]} 22... Rd8 {[%clk 0:01:26.8]} 23. Re6+ {[%clk 0:01:22.2]} 23... Kf5
{[%clk 0:01:22.7]} 24. Rxe7 {[%clk 0:01:17]} 24... Rxd5 {[%clk 0:01:22.7]} 25.
g3 {[%clk 0:01:11]} 25... b6 {[%clk 0:01:19.9]} 26. Rxh7 {[%clk 0:01:09.3]}
26... Rd2 {[%clk 0:01:17.4]} 27. Rxa7 {[%clk 0:01:07.3]} 27... Rxb2 {[%clk
0:01:17.4]} 28. Kg2 {[%clk 0:01:04.8]} 28... Ke4 {[%clk 0:01:16.3]} 29. h4
{[%clk 0:01:02.1]} 29... Kd3 {[%clk 0:01:16.3]} 30. Ra3 {[%clk 0:00:53.4]} 30...
Rc2 {[%clk 0:01:11]} 31. g4 {[%clk 0:00:50.4]} 31... Rxc3 {[%clk 0:01:08.7]} 32.
Rxc3+ {[%clk 0:00:48.8]} 32... Kxc3 {[%clk 0:01:08.6]} 33. h5 {[%clk 0:00:49.7]}
33... gxh5 {[%clk 0:01:08]} 34. gxh5 {[%clk 0:00:50.6]} 34... Kd2 {[%clk
0:01:07.2]} 35. h6 {[%clk 0:00:51]} 35... c4 {[%clk 0:01:07.7]} 36. h7 {[%clk
0:00:51.9]} 36... c3 {[%clk 0:01:08]} 37. h8=Q {[%clk 0:00:52.7]} 37... c2
{[%clk 0:01:08.4]} 38. Qd4+ {[%clk 0:00:48.2]} 38... Ke1 {[%clk 0:01:06.3]} 39.
Qe3+ {[%clk 0:00:43.1]} 39... Kd1 {[%clk 0:01:06.2]} 40. Qd3+ {[%clk 0:00:39.8]}
40... Kc1 {[%clk 0:01:05.9]} 41. f4 {[%clk 0:00:36.4]} 1-0

[Event "Early-Titled-Tuesday-Blitz-April-02-2024"]
[Site "Chess.com"]
[Date "2024.04.02"]
[Round "9"]
[White "Zavgorodniy_Sergiy"]
[Black "bazar-wokzal"]
[Result "1-0"]
[WhiteElo "2654"]
[BlackElo "2555"]
[TimeControl "180+1"]
[EndTime "9:43:57 PDT"]
[Termination "Zavgorodniy_Sergiy won by resignation"]

1. d4 {[%clk 0:03:00.9]} 1... Nf6 {[%clk 0:02:59.4]} 2. Nf3 {[%clk 0:03:00.7]}
2... e6 {[%clk 0:02:59.4]} 3. c4 {[%clk 0:03:00.5]} 3... Nc6 {[%clk 0:02:59.3]}
4. g3 {[%clk 0:02:59.4]} 4... Bb4+ {[%clk 0:02:58.7]} 5. Nbd2 {[%clk 0:02:59]}
5... d6 {[%clk 0:02:56.1]} 6. Bg2 {[%clk 0:02:58.8]} 6... a5 {[%clk 0:02:55.8]}
7. O-O {[%clk 0:02:58.2]} 7... e5 {[%clk 0:02:54.3]} 8. a3 {[%clk 0:02:41.3]}
8... Bxd2 {[%clk 0:02:53.8]} 9. Qxd2 {[%clk 0:02:42.2]} 9... Bg4 {[%clk
0:02:52.4]} 10. d5 {[%clk 0:02:37.7]} 10... Bxf3 {[%clk 0:02:51.2]} 11. exf3
{[%clk 0:02:25.6]} 11... Nd4 {[%clk 0:02:50]} 12. Qd3 {[%clk 0:02:19.7]} 12...
a4 {[%clk 0:02:48.9]} 13. Be3 {[%clk 0:02:13.5]} 13... Nb3 {[%clk 0:02:48.4]}
14. Rad1 {[%clk 0:02:13.1]} 14... O-O {[%clk 0:02:46.7]} 15. f4 {[%clk 0:02:12]}
15... exf4 {[%clk 0:02:42]} 16. Bxf4 {[%clk 0:02:11.8]} 16... Nd7 {[%clk
0:02:41.6]} 17. Rfe1 {[%clk 0:02:09.6]} 17... Qf6 {[%clk 0:02:33.8]} 18. Re2
{[%clk 0:02:01.2]} 18... Ndc5 {[%clk 0:02:29.8]} 19. Qb1 {[%clk 0:01:56.5]}
19... Rfe8 {[%clk 0:02:29.1]} 20. Rde1 {[%clk 0:01:54.3]} 20... Rxe2 {[%clk
0:02:18.1]} 21. Rxe2 {[%clk 0:01:55.2]} 21... g6 {[%clk 0:01:55.5]} 22. h4
{[%clk 0:01:49.2]} 22... Nd4 {[%clk 0:01:25.6]} 23. Re1 {[%clk 0:01:48.4]} 23...
Qf5 {[%clk 0:01:15.8]} 24. Qd1 {[%clk 0:01:44.9]} 24... Qd3 {[%clk 0:00:56]} 25.
Bd2 {[%clk 0:01:33]} 25... h5 {[%clk 0:00:46.9]} 26. Re3 {[%clk 0:01:27.3]}
26... Qf5 {[%clk 0:00:39.1]} 27. Bc3 {[%clk 0:01:24.6]} 27... Ndb3 {[%clk
0:00:25.6]} 28. Qe2 {[%clk 0:01:24.6]} 28... Kf8 {[%clk 0:00:21.3]} 29. Kh2
{[%clk 0:01:15.1]} 29... Nd7 {[%clk 0:00:18.4]} 30. Bh3 {[%clk 0:01:12.9]} 1-0